[Event "ESTCC U65 2018"]
[Site "Walbrzych"]
[Date "2018.04.18"]
[Round "5"]
[White "Jorgensen, Arne Bjorn"]
[Black "Baum, Bernd"]
[Result "0-1"]
[ECO "D02"]
[WhiteElo "1956"]
[BlackElo "2290"]
[Annotator "NA"]
[PlyCount "58"]
[EventDate "2018.??.??"]
[EventCountry "POL"]
[SourceTitle "playchess.com"]
[Source "ChessBase"]
[SourceQuality "1"]
[WhiteTeam "Denmark"]
[BlackTeam "Germany"]
[WhiteTeamCountry "DEN"]
[BlackTeamCountry "GER"]
[TimeControl "40/5400+30:1800+30"]

1. d4 {[%emt 0:00:00]} d5 {[%emt 0:00:22]} 2. Nf3 {[%emt 0:00:00]} Nf6 {[%emt 0:01:16]} 3. Bf4 {[%emt 0:00:00]} c5 {[%emt 0:00:36]} 4. e3 {[%emt 0:00:24]} Nc6 {[%emt 0:00:22]} 5. c3 {[%emt 0:00:26]} Qb6 {[%emt 0:00:42]} 6. Qb3 {[%emt 0:00:45]} c4 {[%emt 0:01:06]} 7. Qxb6 {[%emt 0:00:32]} axb6 {[%emt 0:00:02]} 8. Nbd2 {[%emt 0:00:26]} b5 {[%emt 0:03:23]} 9. a3 {[%emt 0:01:10] D02: 1 d4 d5 2 Nf3 sidelines, including 2...Nf6 3 g3 and 2...Nf6 3 Bf4} b4 {[%emt 0:03:39] LiveBook: 15 Games} 10. cxb4 {[%emt 0:04:25]} Nxb4 {[%emt 0:00:10]} 11. Rc1 {[%emt 0:01:06]} Nc6 {[%emt 0:01:36]} 12. Ne5 {[%emt 0:05:23]} e6 {[%emt 0:05:23]} 13. Be2 {[%emt 0:00:55]} Be7 {[%emt 0:01:09]} 14. O-O {[%emt 0:00:42]} O-O {[%emt 0:00:43]} 15. h3 $146 {[%emt 0:01:29]} ({Find the theoretical novelty and annotate with similar games:} 15. g4 Nd7 16. Bg3 Ndxe5 17. dxe5 {½-½ (34) Milovic,J (2382)-Blagojevic,D (2510) Cetinje 2012}) 15... Nxe5 {[%emt 0:08:51]} 16. Bxe5 {[%emt 0:00:47]} b5 {[%emt 0:00:56]} 17. Ra1 {[%emt 0:10:31]} Bb7 {[%emt 0:01:20]} 18. Bxf6 {[%emt 0:17:25]} gxf6 {[%emt 0:02:10]} 19. Rfc1 {[%emt 0:04:22]} Rfc8 {[%emt 0:06:41]} 20. Nf3 $17 {[%emt 0:02:11]} Bc6 {[%emt 0:05:08]} 21. Ne1 {[%emt 0:02:33]} b4 {[%emt 0:12:42]} 22. axb4 {[%emt 0:01:51]} Bxb4 {[%emt 0:01:42]} 23. Nc2 {[%emt 0:02:35]} Bd6 {[%emt 0:05:33]} 24. Bd1 {[%emt 0:05:18]} Ba4 {[%emt 0:10:34]} 25. Na3 {[%emt 0:03:43]} Bxd1 {[%emt 0:09:00]} 26. Rxd1 {[%emt 0:00:13]} c3 {[%emt 0:00:28]} 27. Nc2 {[%emt 0:10:01]} Rxa1 {[%emt 0:01:01]} 28. Nxa1 {[%emt 0:00:36]} cxb2 {[%emt 0:00:12]} 29. Nb3 {[%emt 0:00:38]} Rc3 {[%emt 0:01:16]} 0-1

[Event "ESTCC U65 2018"]
[Site "Walbrzych"]
[Date "2018.04.18"]
[Round "5"]
[White "Grahn, Lars"]
[Black "Koskinen, Veikko"]
[Result "1/2-1/2"]
[ECO "A80"]
[WhiteElo "1949"]
[BlackElo "2012"]
[Annotator "NA"]
[PlyCount "40"]
[EventDate "2018.??.??"]
[EventCountry "POL"]
[SourceTitle "playchess.com"]
[Source "ChessBase"]
[SourceQuality "1"]
[WhiteTeam "Sweden"]
[BlackTeam "Finland"]
[WhiteTeamCountry "SWE"]
[BlackTeamCountry "FIN"]
[TimeControl "40/5400+30:1800+30"]

1. d4 {[%emt 0:00:00]} f5 {[%emt 0:00:11]} 2. Nc3 {[%emt 0:00:00]} Nf6 {[%emt 0:00:11]} 3. Bg5 {[%emt 0:00:13]} d5 {[%emt 0:01:26]} 4. Bxf6 {[%emt 0:00:11]} exf6 {[%emt 0:00:05]} 5. e3 {[%emt 0:00:10]} Be6 {[%emt 0:00:56]} 6. Qf3 {[%emt 0:00:17]} Nc6 {[%emt 0:04:49]} 7. Bb5 {[%emt 0:04:43]} Qd7 {[%emt 0:05:22]} 8. Nge2 {[%emt 0:01:34]} a6 {[%emt 0:05:19]} 9. Ba4 {[%emt 0:02:23]} g5 {[%emt 0:05:00]} 10. h3 {[%emt 0:04:26]} h5 {[%emt 0:11:36]} 11. Nc1 {[%emt 0:16:07]} O-O-O {[%emt 0:04:58]} 12. Nd3 {[%emt 0:01:13]} b5 {[%emt 0:05:48]} 13. Bb3 {[%emt 0:02:03]} Na5 {[%emt 0:08:26]} 14. O-O-O $15 {[%emt 0:01:57]} (14. Qd1 $11) 14... c6 {[%emt 0:03:52]} 15. h4 {[%emt 0:09:50]} g4 {[%emt 0:03:45]} 16. Qe2 {[%emt 0:00:20]} Nb7 {[%emt 0:01:58]} 17. Nf4 {[%emt 0:04:30]} Bf7 {[%emt 0:01:31]} 18. a4 {[%emt 0:01:41]} Nd6 {[%emt 0:03:05]} 19. axb5 {[%emt 0:05:03]} axb5 {[%emt 0:01:27]} 20. g3 {[%emt 0:15:27]} Bh6 {[%emt 0:02:03]} 1/2-1/2

[Event "ESTCC U65 2018"]
[Site "Walbrzych"]
[Date "2018.04.18"]
[Round "5"]
[White "Just, Joachim"]
[Black "Auvinen, Esa"]
[Result "1/2-1/2"]
[ECO "A46"]
[WhiteElo "1928"]
[BlackElo "1888"]
[Annotator "NA"]
[PlyCount "65"]
[EventDate "2018.??.??"]
[EventCountry "POL"]
[SourceTitle "playchess.com"]
[Source "ChessBase"]
[SourceQuality "1"]
[WhiteTeam "Germany"]
[BlackTeam "Finland"]
[WhiteTeamCountry "GER"]
[BlackTeamCountry "FIN"]
[TimeControl "40/5400+30:1800+30"]

1. d4 {[%emt 0:00:00]} Nf6 {[%emt 0:00:08]} 2. Nf3 {[%emt 0:00:30]} e6 {[%emt 0:00:17]} 3. Bf4 {[%emt 0:00:35]} d5 {[%emt 0:00:36]} 4. e3 {[%emt 0:00:21]} c5 {[%emt 0:00:44]} 5. c3 {[%emt 0:00:12]} Be7 {[%emt 0:02:29]} 6. Nbd2 {[%emt 0:00:43]} O-O {[%emt 0:00:32]} 7. Ne5 {[%emt 0:01:07]} b6 {[%emt 0:01:47]} 8. Rc1 {[%emt 0:01:15]} Bb7 {[%emt 0:00:16]} 9. Bd3 {[%emt 0:00:35]} Nbd7 {[%emt 0:00:34]} 10. O-O {[%emt 0:00:38]} Nxe5 {[%emt 0:01:12]} 11. dxe5 $11 {[%emt 0:00:29]} Ne4 {[%emt 0:03:16]} 12. Nxe4 {[%emt 0:01:57]} dxe4 {[%emt 0:00:12]} 13. Bb1 {[%emt 0:00:19]} Qxd1 {[%emt 0:00:19]} 14. Rfxd1 {[%emt 0:00:22]} Rfd8 {[%emt 0:00:18]} 15. Bc2 {[%emt 0:02:15]} Rxd1+ {[%emt 0:01:55]} 16. Rxd1 {[%emt 0:00:08]} Rd8 {[%emt 0:00:03]} 17. Rxd8+ {[%emt 0:01:28]} Bxd8 {[%emt 0:00:03]} 18. c4 {[%emt 0:00:19]} Bc7 {[%emt 0:05:53]} 19. Bg3 {[%emt 0:01:30]} Bc6 {[%emt 0:01:14]} 20. Kf1 {[%emt 0:03:09]} Kf8 {[%emt 0:00:07]} 21. Ke2 {[%emt 0:00:23]} Ke8 {[%emt 0:01:18]} 22. Kd2 {[%emt 0:02:42]} Kd7 {[%emt 0:00:24]} 23. a3 {[%emt 0:01:44]} h6 {[%emt 0:00:51]} 24. b4 {[%emt 0:00:54]} Ke8 {[%emt 0:01:13]} 25. Kc3 {[%emt 0:01:54]} Kd7 {[%emt 0:00:20]} 26. Bd1 {[%emt 0:01:51]} Ke8 {[%emt 0:01:20]} 27. Be2 {[%emt 0:02:35]} Kd7 {[%emt 0:01:04]} 28. b5 {[%emt 0:01:23]} Bb7 {[%emt 0:00:16]} 29. a4 {[%emt 0:00:27]} Ke8 {[%emt 0:01:11]} 30. Bd1 {[%emt 0:01:42]} Kd7 {[%emt 0:00:12]} 31. Bg4 {[%emt 0:04:16]} Ke8 {[%emt 0:01:33]} 32. Be2 {[%emt 0:00:11]} Kd7 {[%emt 0:00:13]} 33. f3 1/2-1/2

[Event "ESTCC U65 2018"]
[Site "Walbrzych"]
[Date "2018.04.18"]
[Round "5"]
[White "Gromark, Per-Olof"]
[Black "Karppinen, Martti"]
[Result "1/2-1/2"]
[ECO "A28"]
[WhiteElo "1901"]
[BlackElo "1894"]
[Annotator "NA"]
[PlyCount "46"]
[EventDate "2018.??.??"]
[EventCountry "POL"]
[SourceTitle "playchess.com"]
[Source "ChessBase"]
[SourceQuality "1"]
[WhiteTeam "Sweden"]
[BlackTeam "Finland"]
[WhiteTeamCountry "SWE"]
[BlackTeamCountry "FIN"]
[TimeControl "40/5400+30:1800+30"]

1. c4 {[%emt 0:00:00]} e5 {[%emt 0:05:24]} 2. Nc3 {[%emt 0:00:00]} Nf6 {[%emt 0:01:18]} 3. Nf3 {[%emt 0:00:00]} Nc6 {[%emt 0:00:47]} 4. e3 {[%emt 0:00:00]} Be7 {[%emt 0:02:19]} 5. d4 {[%emt 0:00:00]} exd4 {[%emt 0:01:28]} 6. exd4 {[%emt 0:00:00]} d5 {[%emt 0:01:48]} 7. c5 {[%emt 0:03:44]} O-O {[%emt 0:02:38]} 8. Be2 {[%emt 0:01:36]} Re8 {[%emt 0:10:32]} 9. O-O {[%emt 0:01:23]} Ne4 {[%emt 0:04:01]} 10. Be3 {[%emt 0:10:30]} Bf5 {[%emt 0:13:21]} 11. Qb3 {[%emt 0:07:49]} Nxc3 $11 {[%emt 0:05:21]} 12. Qxc3 {[%emt 0:01:07]} Bf6 {[%emt 0:01:52]} 13. Rfe1 {[%emt 0:07:10]} Ne7 {[%emt 0:03:23]} 14. Bf4 {[%emt 0:09:08]} Ng6 {[%emt 0:03:26]} 15. Bg3 {[%emt 0:00:10]} c6 {[%emt 0:01:50]} 16. Bd3 {[%emt 0:06:11]} Bxd3 {[%emt 0:05:07]} 17. Qxd3 {[%emt 0:00:09]} Qd7 {[%emt 0:05:04]} 18. Bd6 {[%emt 0:06:52]} Qg4 {[%emt 0:07:22]} 19. Qd2 {[%emt 0:08:10]} h6 {[%emt 0:01:56]} 20. h3 {[%emt 0:03:58]} Qf5 {[%emt 0:01:57]} 21. Re3 {[%emt 0:09:18]} Re4 {[%emt 0:04:21]} 22. g4 Qe6 {[%emt 0:03:13]} 23. Rae1 {[%emt 0:05:41]} Re8 {[%emt 0:02:26]} 1/2-1/2

[Event "ESTCC U65 2018"]
[Site "Walbrzych"]
[Date "2018.04.18"]
[Round "5"]
[White "Vehkalahti, Veli"]
[Black "Gustavsson, Bo"]
[Result "0-1"]
[ECO "D02"]
[WhiteElo "1880"]
[BlackElo "1915"]
[Annotator "NA"]
[PlyCount "98"]
[EventDate "2018.??.??"]
[EventCountry "POL"]
[SourceTitle "playchess.com"]
[Source "ChessBase"]
[SourceQuality "1"]
[WhiteTeam "Finland"]
[BlackTeam "Sweden"]
[WhiteTeamCountry "FIN"]
[BlackTeamCountry "SWE"]
[TimeControl "40/5400+30:1800+30"]

1. Nf3 {[%emt 0:03:38]} Nf6 {[%emt 0:00:55]} 2. d4 {[%emt 0:00:33]} d5 {[%emt 0:00:10]} 3. Bf4 {[%emt 0:00:29]} e6 {[%emt 0:00:54]} 4. e3 {[%emt 0:00:20]} c5 {[%emt 0:01:03]} 5. c3 {[%emt 0:01:16]} Qb6 {[%emt 0:01:03]} 6. Qb3 {[%emt 0:03:38] LiveBook: 34 Games} Qxb3 {[%emt 0:08:19] D02: 1 d4 d5 2 Nf3 sidelines, including 2...Nf6 3 g3 and 2...Nf6 3 Bf4} 7. axb3 {[%emt 0:00:03]} Nc6 {[%emt 0:00:12]} 8. Nbd2 {[%emt 0:00:41]} Bd7 {[%emt 0:05:11]} 9. Bd3 {[%emt 0:02:59]} (9. Bb5 Nh5 10. Bc7 Rc8 11. Bg3 Nxg3 12. hxg3 {½-½ (56) Matuszewski,M (2505)-Leniart,A (2482) Katowice 2018}) 9... Be7 {[%emt 0:00:20]} (9... Nh5 $11 {keeps the balance.}) 10. dxc5 $146 {[%emt 0:05:59]} ({Predecessor:} 10. O-O Nh5 11. dxc5 Nxf4 12. exf4 Bxc5 {½-½ (34) Gossell,T (2237)-Langer,M (2308) Stillwater 2006}) 10... Bxc5 {[%emt 0:00:15]} 11. b4 {[%emt 0:01:14]} Be7 {[%emt 0:04:43]} 12. O-O {[%emt 0:09:15]} O-O {[%emt 0:01:09]} 13. b5 {[%emt 0:02:18]} Nb8 {[%emt 0:00:55]} 14. Nd4 {[%emt 0:05:18]} Ne8 {[%emt 0:04:31]} 15. Bxb8 Rxb8 16. Rxa7 {[%emt 0:02:37]} Bc5 $11 {[%emt 0:00:58]} 17. Ra4 {[%emt 0:06:48]} Nd6 {[%emt 0:04:02]} 18. N2f3 {[%emt 0:07:03]} Rfc8 {[%emt 0:06:42]} 19. Rc1 {[%emt 0:08:06]} Bxd4 {[%emt 0:04:27]} 20. exd4 {[%emt 0:03:37]} Bxb5 {[%emt 0:00:11]} 21. Bxb5 {[%emt 0:01:00]} Nxb5 {[%emt 0:00:01]} 22. Rca1 {[%emt 0:04:26]} f6 {[%emt 0:00:36]} 23. Kf1 {[%emt 0:00:51]} Nd6 {[%emt 0:00:19]} 24. Nd2 {[%emt 0:00:28]} Kf8 {[%emt 0:04:25]} 25. f3 {[%emt 0:00:19]} b5 {[%emt 0:03:14]} 26. Ra6 {[%emt 0:03:42]} Nc4 {[%emt 0:05:36]} 27. Nb3 {[%emt 0:04:14]} Kf7 {[%emt 0:07:54]} 28. R1a2 {[%emt 0:03:15]} Rc7 {[%emt 0:05:32]} 29. Nc5 {[%emt 0:00:53]} e5 {[%emt 0:01:58]} 30. Kf2 {[%emt 0:01:40]} exd4 {[%emt 0:03:44]} 31. cxd4 {[%emt 0:00:04]} b4 {[%emt 0:02:18]} 32. b3 {[%emt 0:01:51]} Na3 {[%emt 0:02:31]} 33. Rd6 {[%emt 0:01:01]} Nb5 {[%emt 0:00:32]} 34. Na6 {[%emt 0:03:14]} Ra8 {[%emt 0:02:46]} 35. Rb2 {[%emt 0:01:48]} Nxd6 {[%emt 0:05:35]} 36. Nxc7 {[%emt 0:00:07]} Ra5 {[%emt 0:00:14]} 37. Ke2 {[%emt 0:00:59]} Ke7 {[%emt 0:00:07]} 38. Rc2 {[%emt 0:00:33]} Kd7 {[%emt 0:00:08]} 39. Rc5 {[%emt 0:05:37]} Rxc5 {[%emt 0:02:18]} 40. dxc5 {[%emt 0:00:02]} Kxc7 {[%emt 0:30:01]} 41. cxd6+ {[%emt 0:00:02]} Kxd6 {[%emt 0:00:00]} 42. f4 {[%emt 0:02:16]} f5 {[%emt 0:00:00]} 43. h4 {[%emt 0:01:21]} Kc5 {[%emt 0:00:00]} 44. Kd3 {[%emt 0:00:13]} d4 {[%emt 0:00:00]} 45. h5 {[%emt 0:02:21]} Kd5 {[%emt 0:00:00]} 46. g3 {[%emt 0:00:38]} h6 {[%emt 0:00:00]} 47. Kd2 {[%emt 0:00:27]} Ke4 {[%emt 0:00:00]} 48. Ke2 {[%emt 0:00:25]} d3+ {[%emt 0:00:00]} 49. Kd2 {[%emt 0:00:04]} Kd5 0-1

[Event "ESTCC U65 2018"]
[Site "Walbrzych"]
[Date "2018.04.18"]
[Round "5"]
[White "Patola, Eero"]
[Black "Tichatschke, Wolfgang"]
[Result "1/2-1/2"]
[ECO "D37"]
[WhiteElo "1823"]
[BlackElo "1967"]
[Annotator "NA"]
[PlyCount "24"]
[EventDate "2018.??.??"]
[EventCountry "POL"]
[SourceTitle "playchess.com"]
[Source "ChessBase"]
[SourceQuality "1"]
[WhiteTeam "Finland"]
[BlackTeam "Germany"]
[WhiteTeamCountry "FIN"]
[BlackTeamCountry "GER"]
[TimeControl "40/5400+30:1800+30"]

1. c4 e6 2. Nc3 d5 3. d4 Nf6 4. Nf3 Be7 5. e3 O-O 6. cxd5 exd5 7. Be2 Bg4 $11 8. h3 Bf5 9. Ne5 Nbd7 10. Qb3 Nb6 11. a4 a5 12. Bd2 Ne4 1/2-1/2

[Event "ESTCC U65 2018"]
[Site "Walbrzych"]
[Date "2018.04.18"]
[Round "5"]
[White "Rintakoski, Pentti"]
[Black "Nilsson, Christer"]
[Result "0-1"]
[ECO "C00"]
[WhiteElo "1797"]
[BlackElo "1931"]
[Annotator "NA"]
[PlyCount "86"]
[EventDate "2018.??.??"]
[EventCountry "POL"]
[SourceTitle "playchess.com"]
[Source "ChessBase"]
[SourceQuality "1"]
[WhiteTeam "Finland"]
[BlackTeam "Sweden"]
[WhiteTeamCountry "FIN"]
[BlackTeamCountry "SWE"]
[TimeControl "40/5400+30:1800+30"]

1. e4 {[%emt 0:00:00]} e6 {[%emt 0:00:07]} 2. Nf3 {[%emt 0:00:03]} d5 {[%emt 0:00:37]} 3. e5 {[%emt 0:01:06]} c5 {[%emt 0:00:18]} 4. d4 {[%emt 0:00:56]} cxd4 {[%emt 0:04:09]} 5. Nxd4 {[%emt 0:00:29]} Nc6 {[%emt 0:03:46]} 6. Bb5 {[%emt 0:00:37]} Bd7 {[%emt 0:00:31]} 7. Bxc6 {[%emt 0:00:40]} bxc6 $15 {[%emt 0:00:57]} 8. O-O {[%emt 0:00:30]} Ne7 {[%emt 0:07:27]} 9. Nd2 {[%emt 0:02:04]} Ng6 {[%emt 0:05:51]} 10. N2f3 {[%emt 0:00:51]} Be7 {[%emt 0:02:55]} 11. c3 {[%emt 0:05:38]} c5 {[%emt 0:01:48]} 12. Ne2 {[%emt 0:01:22]} Qb8 {[%emt 0:07:39]} 13. Re1 {[%emt 0:01:48]} Nxe5 {[%emt 0:06:20]} 14. Nxe5 {[%emt 0:00:20]} Qxe5 {[%emt 0:00:19]} 15. Bf4 {[%emt 0:01:04]} Qf6 {[%emt 0:04:07]} 16. Qd2 {[%emt 0:00:47]} O-O {[%emt 0:01:45]} 17. Ng3 {[%emt 0:00:45]} Bc6 {[%emt 0:04:07]} 18. Be5 {[%emt 0:08:39]} Qg6 {[%emt 0:01:06]} 19. Qe2 {[%emt 0:00:32]} Rfe8 {[%emt 0:08:46]} 20. Nh5 {[%emt 0:04:58]} Bf8 {[%emt 0:03:25]} 21. Rad1 {[%emt 0:01:03]} f6 {[%emt 0:01:23]} 22. Bg3 {[%emt 0:01:43]} e5 {[%emt 0:00:26]} 23. h3 {[%emt 0:01:34]} Rad8 {[%emt 0:03:38]} 24. f3 {[%emt 0:04:03]} Qxh5 {[%emt 0:00:57]} 25. Qa6 {[%emt 0:00:26]} Ba8 {[%emt 0:01:35]} 26. Qxa7 {[%emt 0:01:17]} Qf7 {[%emt 0:00:21]} 27. Qa4 {[%emt 0:00:55]} Qb7 {[%emt 0:01:11]} 28. Rd2 {[%emt 0:00:37]} Qc6 {[%emt 0:01:47]} 29. Qd1 {[%emt 0:01:18]} Bb7 {[%emt 0:01:11]} 30. Bf2 {[%emt 0:00:51]} Ra8 {[%emt 0:01:19]} 31. Qb1 {[%emt 0:00:31]} d4 {[%emt 0:01:44]} 32. cxd4 {[%emt 0:02:05]} cxd4 {[%emt 0:00:57]} 33. a3 {[%emt 0:00:57]} Rac8 {[%emt 0:01:22]} 34. Qf5 {[%emt 0:02:02]} Qd5 {[%emt 0:02:49]} 35. b4 {[%emt 0:01:36]} Rc4 {[%emt 0:01:53]} 36. Qb1 {[%emt 0:01:19]} Rec8 {[%emt 0:00:24]} 37. Red1 {[%emt 0:01:04]} Rc3 {[%emt 0:01:04]} 38. Qb2 {[%emt 0:01:41]} Qc4 {[%emt 0:01:08]} 39. Bxd4 {[%emt 0:02:12]} exd4 {[%emt 0:00:48]} 40. Rxd4 {[%emt 0:00:00]} Qb3 {[%emt 0:01:47]} 41. Qxb3+ Rxb3 42. Rd7 {[%emt 0:02:43]} Bc6 {[%emt 0:03:04]} 43. Ra7 {[%emt 0:00:32]} Ra8 {[%emt 0:03:48]} 0-1

[Event "ESTCC U65 2018"]
[Site "Walbrzych"]
[Date "2018.04.18"]
[Round "5"]
[White "Andersson, Finn"]
[Black "Ackermann, Hans Werner"]
[Result "0-1"]
[ECO "B06"]
[WhiteElo "1719"]
[BlackElo "2211"]
[Annotator "NA"]
[PlyCount "94"]
[EventDate "2018.??.??"]
[EventCountry "POL"]
[SourceTitle "playchess.com"]
[Source "ChessBase"]
[SourceQuality "1"]
[WhiteTeam "Denmark"]
[BlackTeam "Germany"]
[WhiteTeamCountry "DEN"]
[BlackTeamCountry "GER"]
[TimeControl "40/5400+30:1800+30"]

1. e4 {[%emt 0:00:00]} g6 {[%emt 0:00:10]} 2. d4 {[%emt 0:01:20]} Bg7 {[%emt 0:00:05]} 3. Nf3 {[%emt 0:00:16]} d6 {[%emt 0:00:06]} 4. Be3 {[%emt 0:01:00]} a6 {[%emt 0:00:32]} 5. h3 {[%emt 0:00:54]} Nd7 {[%emt 0:01:50]} 6. Bd3 {[%emt 0:04:54]} c5 {[%emt 0:03:45]} 7. c3 {[%emt 0:09:38]} Qc7 {[%emt 0:02:14]} 8. Nbd2 {[%emt 0:03:24]} Ngf6 {[%emt 0:02:20]} 9. O-O {[%emt 0:02:58]} O-O {[%emt 0:01:08]} 10. Re1 {[%emt 0:00:21]} b6 {[%emt 0:04:01]} 11. e5 {[%emt 0:18:48]} Nd5 {[%emt 0:11:23]} 12. exd6 {[%emt 0:03:35]} exd6 {[%emt 0:00:30]} 13. Bg5 $11 {[%emt 0:07:02]} Bb7 {[%emt 0:05:03]} 14. Rc1 {[%emt 0:10:48]} h6 {[%emt 0:06:23]} 15. Bh4 {[%emt 0:00:09]} Nf4 {[%emt 0:00:11]} 16. Bf1 {[%emt 0:00:20]} Nf6 {[%emt 0:07:08]} 17. Bxf6 {[%emt 0:04:43]} Bxf6 {[%emt 0:03:10]} 18. Ne4 {[%emt 0:02:28]} Bg7 {[%emt 0:00:54]} 19. dxc5 {[%emt 0:05:22]} dxc5 {[%emt 0:01:09]} 20. g3 {[%emt 0:07:39]} Rfd8 {[%emt 0:02:57]} 21. Qc2 {[%emt 0:00:28]} Nd5 {[%emt 0:00:57]} 22. Rcd1 {[%emt 0:04:24]} b5 {[%emt 0:02:41]} 23. h4 {[%emt 0:01:08]} Nb6 {[%emt 0:05:05]} 24. b3 {[%emt 0:03:38]} Nd5 {[%emt 0:17:09]} 25. c4 {[%emt 0:01:40]} Nf6 {[%emt 0:00:25]} 26. Nxf6+ {[%emt 0:00:18]} Bxf6 {[%emt 0:00:08]} 27. Rxd8+ {[%emt 0:01:44]} Rxd8 {[%emt 0:00:29]} 28. Bg2 {[%emt 0:01:21]} b4 {[%emt 0:00:44]} 29. Qc1 {[%emt 0:00:59]} Kg7 {[%emt 0:01:28]} 30. Qe3 {[%emt 0:00:14]} Bc3 {[%emt 0:01:00]} 31. Re2 {[%emt 0:00:38]} a5 {[%emt 0:03:30]} 32. Ne1 {[%emt 0:01:38]} Bd4 {[%emt 0:00:34]} 33. Qc1 {[%emt 0:01:06]} Qxg3 {[%emt 0:00:52]} 34. Qc2 {[%emt 0:01:08]} Bc8 {[%emt 0:04:16]} 35. Qe4 {[%emt 0:00:10]} Qc7 {[%emt 0:00:41]} 36. Nd3 {[%emt 0:00:08]} Bf5 {[%emt 0:00:11]} 37. Qf4 {[%emt 0:00:34]} Qxf4 {[%emt 0:01:31]} 38. Nxf4 {[%emt 0:00:02]} Bf6 {[%emt 0:00:08]} 39. h5 {[%emt 0:00:22]} Rd1+ {[%emt 0:00:54]} 40. Kh2 {[%emt 0:00:52]} Bg5 {[%emt 0:28:48]} 41. Kg3 {[%emt 0:07:54]} Rd4 {[%emt 0:00:00]} 42. Nh3 {[%emt 0:04:56]} Bh4+ {[%emt 0:00:00]} 43. Kh2 {[%emt 0:00:30]} Bd8 {[%emt 0:00:00]} 44. f3 {[%emt 0:09:55]} Rh4 {[%emt 0:00:00]} 45. Kg3 {[%emt 0:00:50]} g5 {[%emt 0:00:00]} 46. f4 {[%emt 0:04:40]} Bc7 {[%emt 0:00:00]} 47. Rf2 {[%emt 0:01:51]} Rxh5 {[%emt 0:00:00]} 0-1

[Event "ESTCC U65 2018"]
[Site "Walbrzych"]
[Date "2018.04.18"]
[Round "5"]
[White "Lindholm, Pertti"]
[Black "Fitzke, Ulrich"]
[Result "0-1"]
[ECO "D30"]
[WhiteElo "1624"]
[BlackElo "1827"]
[Annotator "NA"]
[PlyCount "106"]
[EventDate "2018.??.??"]
[EventCountry "POL"]
[SourceTitle "playchess.com"]
[Source "ChessBase"]
[SourceQuality "1"]
[WhiteTeam "Finland"]
[BlackTeam "Germany"]
[WhiteTeamCountry "FIN"]
[BlackTeamCountry "GER"]
[TimeControl "40/5400+30:1800+30"]

1. d4 {[%emt 0:00:00]} d5 {[%emt 0:00:28]} 2. c4 {[%emt 0:00:03]} e6 {[%emt 0:00:40]} 3. Nf3 {[%emt 0:00:52]} Nf6 {[%emt 0:00:41]} 4. Bf4 {[%emt 0:00:42]} Bd6 {[%emt 0:01:56]} 5. Bxd6 {[%emt 0:01:14]} Qxd6 {[%emt 0:00:28]} 6. c5 {[%emt 0:01:20]} Qe7 {[%emt 0:01:18]} 7. e3 {[%emt 0:01:05]} O-O {[%emt 0:00:19]} 8. Bd3 {[%emt 0:00:46]} Nbd7 {[%emt 0:01:17]} 9. O-O {[%emt 0:00:56]} e5 {[%emt 0:03:23]} 10. dxe5 {[%emt 0:01:54]} Nxe5 {[%emt 0:00:33]} 11. Nxe5 {[%emt 0:01:41]} Qxe5 {[%emt 0:00:30]} 12. Qc2 {[%emt 0:01:31]} Ng4 {[%emt 0:06:08]} 13. g3 {[%emt 0:05:54]} Qh5 {[%emt 0:02:36]} 14. h4 {[%emt 0:03:34]} g5 {[%emt 0:12:17]} 15. Kg2 {[%emt 0:10:37]} gxh4 {[%emt 0:04:01]} 16. gxh4 {[%emt 0:03:56]} Ne5 {[%emt 0:02:19]} 17. Be2 {[%emt 0:04:02]} Bg4 {[%emt 0:01:10]} 18. Nc3 {[%emt 0:02:46]} c6 {[%emt 0:06:30]} 19. f4 {[%emt 0:03:11]} Ng6 {[%emt 0:03:39]} 20. Rh1 {[%emt 0:02:36]} Rae8 {[%emt 0:02:14]} 21. Bxg4 {[%emt 0:02:50]} Qxg4+ {[%emt 0:00:52]} 22. Kf2 {[%emt 0:00:23]} Kh8 {[%emt 0:01:16]} 23. Rag1 {[%emt 0:01:49]} Qe6 {[%emt 0:01:16]} 24. Nd1 {[%emt 0:02:16]} Qf6 {[%emt 0:01:53]} 25. Qc3 {[%emt 0:03:12]} d4 {[%emt 0:02:38]} 26. Qxd4 {[%emt 0:01:50]} Qxd4 {[%emt 0:00:40]} 27. exd4 {[%emt 0:00:03]} Nxf4 {[%emt 0:00:33]} 28. Rg4 {[%emt 0:02:06]} Ne6 {[%emt 0:02:26]} 29. h5 {[%emt 0:02:37]} Rd8 {[%emt 0:00:51]} 30. Ke3 {[%emt 0:02:30]} Rg8 {[%emt 0:03:15]} 31. Rxg8+ {[%emt 0:02:32]} Kxg8 {[%emt 0:01:23]} 32. Rg1+ {[%emt 0:06:48]} Kf8 {[%emt 0:00:33]} 33. h6 {[%emt 0:01:02]} Rxd4 {[%emt 0:01:30]} 34. Nc3 {[%emt 0:01:33]} Rh4 {[%emt 0:00:37]} 35. Rf1 {[%emt 0:01:34]} Nxc5 {[%emt 0:01:33]} 36. Rf6 {[%emt 0:00:47]} Nd7 {[%emt 0:00:32]} 37. Rd6 {[%emt 0:00:44]} Ke7 {[%emt 0:00:22]} 38. Rd2 {[%emt 0:02:02]} Rxh6 {[%emt 0:00:22]} 39. Ne4 {[%emt 0:00:36]} Re6 {[%emt 0:00:47]} 40. Kf4 {[%emt 0:00:00]} Rh6 {[%emt 0:02:56]} 41. Ng3 {[%emt 0:01:21]} Rf6+ {[%emt 0:02:16]} 42. Kg5 {[%emt 0:01:12]} Rg6+ {[%emt 0:02:28]} 43. Kf4 {[%emt 0:00:23]} Nf6 {[%emt 0:01:08]} 44. Nf5+ {[%emt 0:01:00]} Kf8 {[%emt 0:05:21]} 45. Rd8+ {[%emt 0:01:18]} Ne8 {[%emt 0:00:26]} 46. Rd7 {[%emt 0:01:24]} Rf6 {[%emt 0:01:28]} 47. Kg5 {[%emt 0:01:18]} Rg6+ {[%emt 0:02:07]} 48. Kf4 {[%emt 0:00:17]} h5 {[%emt 0:02:12]} 49. Rxb7 {[%emt 0:00:46]} Rg4+ {[%emt 0:00:26]} 50. Kf3 {[%emt 0:00:24]} Rg5 {[%emt 0:00:50]} 51. Kf4 {[%emt 0:00:25]} Rg2 {[%emt 0:00:53]} 52. a3 {[%emt 0:01:28]} Rf2+ {[%emt 0:00:16]} 53. Kg5 {[%emt 0:00:49]} Rxf5+ {[%emt 0:00:40]} 0-1